[Event "*** Titled Tuesday 3|2 Blitz"]
[Site "Chess.com"]
[Date "2016.07.05"]
[Round "2"]
[White "FLchessplayer"]
[Black "rikyshi"]
[Result "1/2-1/2"]
[WhiteElo "2069"]
[BlackElo "2110"]
[TimeControl "180+2"]
[EndTime "11:22:59 PDT"]
[Termination "Game drawn - insufficient material"]

1. e4 {[%clk 0:02:59.1]} 1... e6 {[%clk 0:02:59.4]} 2. d4 {[%clk 0:03:00.2]}
2... d5 {[%clk 0:03:00.7]} 3. Nd2 {[%clk 0:03:01.1]} 3... c5 {[%clk 0:02:53.3]}
4. exd5 {[%clk 0:03:00.1]} 4... Qxd5 {[%clk 0:02:55.2]} 5. Ngf3 {[%clk
0:03:00.8]} 5... cxd4 {[%clk 0:02:54.9]} 6. Bc4 {[%clk 0:03:01.9]} 6... Qd8
{[%clk 0:02:53.9]} 7. O-O {[%clk 0:03:02.1]} 7... Bd6 {[%clk 0:02:48.8]} 8. Nb3
{[%clk 0:03:02]} 8... Ne7 {[%clk 0:02:43]} 9. Nbxd4 {[%clk 0:03:01.9]} 9... a6
{[%clk 0:02:43.7]} 10. Bb3 {[%clk 0:02:58.5]} 10... Nbc6 {[%clk 0:02:42.9]} 11.
c3 {[%clk 0:02:56.7]} 11... Qc7 {[%clk 0:02:41.9]} 12. h3 {[%clk 0:02:43.7]}
12... e5 {[%clk 0:02:35]} 13. Nxc6 {[%clk 0:02:43.4]} 13... Nxc6 {[%clk
0:02:32.7]} 14. Ng5 {[%clk 0:02:35.4]} 14... O-O {[%clk 0:02:24.8]} 15. Qd3
{[%clk 0:02:31.6]} 15... g6 {[%clk 0:02:22.3]} 16. Ne4 {[%clk 0:02:22.7]} 16...
Be7 {[%clk 0:02:22.4]} 17. Bg5 {[%clk 0:02:13.6]} 17... Bxg5 {[%clk 0:02:20.6]}
18. Nxg5 {[%clk 0:02:14]} 18... Bf5 {[%clk 0:02:21.1]} 19. Qe3 {[%clk
0:02:11.4]} 19... h6 {[%clk 0:02:17.8]} 20. Ne4 {[%clk 0:02:08.6]} 20... Bxe4
{[%clk 0:02:17]} 21. Qxe4 {[%clk 0:02:09.7]} 21... Kg7 {[%clk 0:02:14.7]} 22.
Rad1 {[%clk 0:02:02.6]} 22... Rad8 {[%clk 0:02:14.7]} 23. Qe3 {[%clk 0:01:56.9]}
23... Ne7 {[%clk 0:01:41.3]} 24. Rxd8 {[%clk 0:01:45.9]} 24... Rxd8 {[%clk
0:01:39.8]} 25. Re1 {[%clk 0:01:46.8]} 25... f6 {[%clk 0:01:38]} 26. Qe2 {[%clk
0:01:36.8]} 26... Qc5 {[%clk 0:01:37.1]} 27. Rd1 {[%clk 0:01:36.9]} 27... Rd6
{[%clk 0:01:33.9]} 28. Rxd6 {[%clk 0:01:35]} 28... Qxd6 {[%clk 0:01:33.8]} 29.
Kf1 {[%clk 0:01:35.7]} 29... Nf5 {[%clk 0:01:31.6]} 30. Ke1 {[%clk 0:01:28.1]}
30... b5 {[%clk 0:01:29.9]} 31. Qe4 {[%clk 0:01:23.8]} 31... h5 {[%clk
0:01:28.1]} 32. Qb7+ {[%clk 0:01:19.7]} 32... Kh6 {[%clk 0:01:28.1]} 33. Qf3
{[%clk 0:01:14.6]} 33... a5 {[%clk 0:01:22.2]} 34. a3 {[%clk 0:01:11.1]} 34...
b4 {[%clk 0:01:15.1]} 35. axb4 {[%clk 0:01:00.7]} 35... axb4 {[%clk 0:01:17]}
36. Bc2 {[%clk 0:01:00.9]} 36... bxc3 {[%clk 0:01:16]} 37. bxc3 {[%clk
0:00:54.3]} 37... Ne7 {[%clk 0:01:06.6]} 38. Qe3+ {[%clk 0:00:54.2]} 38... g5
{[%clk 0:01:05.2]} 39. g3 {[%clk 0:00:50.4]} 39... Qc6 {[%clk 0:01:01.5]} 40.
Be4 {[%clk 0:00:50.6]} 40... Nd5 {[%clk 0:00:56.5]} 41. Bxd5 {[%clk 0:00:43.2]}
41... Qxd5 {[%clk 0:00:56.7]} 42. g4 {[%clk 0:00:38.9]} 42... hxg4 {[%clk
0:00:54.6]} 43. hxg4 {[%clk 0:00:39.2]} 43... Qc4 {[%clk 0:00:54]} 44. Qh3+
{[%clk 0:00:37.9]} 44... Kg7 {[%clk 0:00:54.4]} 45. Kd2 {[%clk 0:00:38.9]} 45...
Qf4+ {[%clk 0:00:54.7]} 46. Kc2 {[%clk 0:00:34.3]} 46... Qa4+ {[%clk 0:00:53]}
47. Kc1 {[%clk 0:00:30.9]} 47... Qa3+ {[%clk 0:00:53.1]} 48. Kd2 {[%clk
0:00:31.9]} 48... Qb2+ {[%clk 0:00:46.5]} 49. Ke1 {[%clk 0:00:32.9]} 49... Qc1+
{[%clk 0:00:47.4]} 50. Ke2 {[%clk 0:00:34]} 50... Qc2+ {[%clk 0:00:48]} 51. Kf1
{[%clk 0:00:35]} 51... Qd1+ {[%clk 0:00:49.4]} 52. Kg2 {[%clk 0:00:36.1]} 52...
Qd5+ {[%clk 0:00:51]} 53. Kh2 {[%clk 0:00:37]} 53... Qc5 {[%clk 0:00:51.6]} 54.
Kg2 {[%clk 0:00:36]} 54... e4 {[%clk 0:00:52.5]} 55. Qe3 {[%clk 0:00:28.4]}
55... Qd5 {[%clk 0:00:44.7]} 56. Qa7+ {[%clk 0:00:27.7]} 56... Kg6 {[%clk
0:00:45.3]} 57. Qe3 {[%clk 0:00:24.7]} 57... Qe6 {[%clk 0:00:44.8]} 58. Kg3
{[%clk 0:00:24.8]} 58... Qe5+ {[%clk 0:00:44.7]} 59. Kh3 {[%clk 0:00:25.9]}
59... Qf4 {[%clk 0:00:32.5]} 60. Qe2 {[%clk 0:00:19.8]} 60... Kf7 {[%clk
0:00:25.6]} 61. Qc4+ {[%clk 0:00:19.3]} 61... Ke7 {[%clk 0:00:26.5]} 62. Qc5+
{[%clk 0:00:18.6]} 62... Qd6 {[%clk 0:00:26.3]} 63. Qe3 {[%clk 0:00:18.2]} 63...
Qd5 {[%clk 0:00:23]} 64. Kg3 {[%clk 0:00:17.1]} 64... Ke6 {[%clk 0:00:22]} 65.
f3 {[%clk 0:00:17.6]} 65... Qe5+ {[%clk 0:00:21.5]} 66. Kf2 {[%clk 0:00:18.5]}
66... Qh2+ {[%clk 0:00:16.9]} 67. Ke1 {[%clk 0:00:18.6]} 67... Qh1+ {[%clk
0:00:14.1]} 68. Ke2 {[%clk 0:00:19.7]} 68... Qg2+ {[%clk 0:00:09.1]} 69. Ke1
{[%clk 0:00:20.6]} 69... Qxf3 {[%clk 0:00:09.5]} 70. Qxf3 {[%clk 0:00:20.7]}
70... exf3 {[%clk 0:00:11.4]} 71. Kf2 {[%clk 0:00:22.1]} 71... f5 {[%clk
0:00:11.9]} 72. gxf5+ {[%clk 0:00:20.8]} 72... Kxf5 {[%clk 0:00:13]} 73. Kxf3
{[%clk 0:00:22.7]} 73... Ke5 {[%clk 0:00:13.9]} 74. Kg4 {[%clk 0:00:22.4]} 74...
Kd5 {[%clk 0:00:13.9]} 75. Kxg5 {[%clk 0:00:23.8]} 75... Kc4 {[%clk 0:00:15.8]}
76. Kf5 {[%clk 0:00:21.8]} 76... Kxc3 {[%clk 0:00:17.7]} 1/2-1/2

[Event "*** Titled Tuesday 3|2 Blitz"]
[Site "Chess.com"]
[Date "2016.07.05"]
[Round "2"]
[White "Aragon"]
[Black "Wolverine_master"]
[Result "0-1"]
[WhiteElo "2094"]
[BlackElo "2039"]
[TimeControl "180+2"]
[EndTime "11:23:05 PDT"]
[Termination "Wolverine_master won by resignation"]

1. e4 {[%clk 0:03:01.9]} 1... e5 {[%clk 0:03:00]} 2. Nf3 {[%clk 0:03:00.4]} 2...
Nc6 {[%clk 0:03:01.1]} 3. Nc3 {[%clk 0:02:59.8]} 3... Nf6 {[%clk 0:03:01.5]} 4.
g3 {[%clk 0:03:00]} 4... Bb4 {[%clk 0:03:01.2]} 5. Bg2 {[%clk 0:03:00.4]} 5...
d6 {[%clk 0:02:59.1]} 6. O-O {[%clk 0:02:58.6]} 6... Bxc3 {[%clk 0:02:59]} 7.
dxc3 {[%clk 0:02:56.2]} 7... Nxe4 {[%clk 0:03:00.4]} 8. Nxe5 {[%clk 0:02:49.7]}
8... Nxe5 {[%clk 0:02:40.8]} 9. Bxe4 {[%clk 0:02:46.5]} 9... O-O {[%clk
0:02:41.6]} 10. Qh5 {[%clk 0:02:34.7]} 10... Ng6 {[%clk 0:02:28.1]} 11. Bg5
{[%clk 0:02:26.4]} 11... Qe8 {[%clk 0:02:22.1]} 12. Rae1 {[%clk 0:02:21.5]}
12... Qb5 {[%clk 0:02:22.6]} 13. Bd3 {[%clk 0:02:12.3]} 13... Qxb2 {[%clk
0:02:16.2]} 14. f4 {[%clk 0:02:10.7]} 14... f5 {[%clk 0:02:13.8]} 15. Bc4+
{[%clk 0:02:01.2]} 15... Kh8 {[%clk 0:02:12.1]} 16. Bf7 {[%clk 0:00:35.8]} 16...
Rxf7 {[%clk 0:01:48.6]} 17. Re8+ {[%clk 0:00:36.9]} 17... Rf8 {[%clk 0:01:49]}
18. Rxf8+ {[%clk 0:00:37.8]} 18... Nxf8 {[%clk 0:01:47.4]} 19. Qf7 {[%clk
0:00:39]} 19... Be6 {[%clk 0:01:41.8]} 20. Qxc7 {[%clk 0:00:39.6]} 20... Qb6+
{[%clk 0:01:41.2]} 21. Qxb6 {[%clk 0:00:39.5]} 21... axb6 {[%clk 0:01:42.6]} 22.
Rb1 {[%clk 0:00:39.4]} 22... Nd7 {[%clk 0:01:32.3]} 23. Be7 {[%clk 0:00:39.2]}
23... Rxa2 {[%clk 0:01:28.2]} 24. Re1 {[%clk 0:00:35.7]} 24... Bd5 {[%clk
0:01:22.8]} 25. Bxd6 {[%clk 0:00:35.5]} 25... h6 {[%clk 0:01:23.7]} 26. Re7
{[%clk 0:00:33.4]} 26... Nc5 {[%clk 0:01:23.7]} 27. Be5 {[%clk 0:00:31.9]} 27...
Ne6 {[%clk 0:01:23.5]} 28. Rd7 {[%clk 0:00:29.5]} 28... Bc4 {[%clk 0:01:03.7]}
29. Rxb7 {[%clk 0:00:29.3]} 29... b5 {[%clk 0:01:04.6]} 30. g4 {[%clk
0:00:24.4]} 30... Ra1+ {[%clk 0:00:55.4]} 31. Kf2 {[%clk 0:00:22.6]} 31... Rf1+
{[%clk 0:00:55.9]} 32. Ke3 {[%clk 0:00:17.4]} 32... Re1+ {[%clk 0:00:55.1]} 33.
Kd2 {[%clk 0:00:15.6]} 33... Re2+ {[%clk 0:00:54.5]} 34. Kd1 {[%clk 0:00:16.8]}
34... fxg4 {[%clk 0:00:48.6]} 35. Re7 {[%clk 0:00:17]} 35... Kh7 {[%clk
0:00:38.8]} 36. Rxe6 {[%clk 0:00:16.8]} 36... Rxh2 {[%clk 0:00:32.7]} 37. Re7
{[%clk 0:00:16.9]} 37... Kg6 {[%clk 0:00:34]} 38. Rxg7+ {[%clk 0:00:17.2]} 38...
Kf5 {[%clk 0:00:35.6]} 39. Rh7 {[%clk 0:00:13.5]} 39... Ke4 {[%clk 0:00:36.4]}
40. Kc1 {[%clk 0:00:10.9]} 40... g3 {[%clk 0:00:35.9]} 41. Bc7 {[%clk
0:00:10.3]} 41... g2 {[%clk 0:00:35.7]} 42. Re7+ {[%clk 0:00:10.6]} 42... Kf3
{[%clk 0:00:34.9]} 43. Bb6 {[%clk 0:00:12.5]} 43... Rh1+ {[%clk 0:00:35]} 44.
Kb2 {[%clk 0:00:13.7]} 44... g1=Q {[%clk 0:00:36.6]} 45. Bxg1 {[%clk 0:00:13.8]}
45... Rxg1 {[%clk 0:00:38.5]} 46. f5 {[%clk 0:00:15.5]} 46... Rg8 {[%clk
0:00:36.2]} 47. Rh7 {[%clk 0:00:12.8]} 47... Rf8 {[%clk 0:00:35.8]} 48. Rxh6
{[%clk 0:00:13.7]} 48... Rxf5 {[%clk 0:00:37.3]} 49. Ka3 {[%clk 0:00:15.6]}
49... Ke2 {[%clk 0:00:38]} 50. Kb4 {[%clk 0:00:16.4]} 50... Kd1 {[%clk
0:00:38.8]} 51. Rh2 {[%clk 0:00:18.3]} 51... Rd5 {[%clk 0:00:39.3]} 52. Rg2
{[%clk 0:00:18.5]} 52... Rd2 {[%clk 0:00:40.1]} 53. Rg1+ {[%clk 0:00:19.5]}
53... Kxc2 {[%clk 0:00:41.1]} 54. Rg3 {[%clk 0:00:21.4]} 54... Rd1 {[%clk
0:00:41.6]} 55. Rg2+ {[%clk 0:00:22.2]} 55... Rd2 {[%clk 0:00:42.4]} 56. Rg3
{[%clk 0:00:23.3]} 56... Kb2 {[%clk 0:00:40.9]} 57. Rh3 {[%clk 0:00:22.6]} 57...
Ka2 {[%clk 0:00:41.5]} 58. Rg3 {[%clk 0:00:22.3]} 58... Rb2+ {[%clk 0:00:42.6]}
59. Kc5 {[%clk 0:00:23.6]} 59... Kb3 {[%clk 0:00:44]} 60. Rh3 {[%clk 0:00:22.7]}
60... Rc2 {[%clk 0:00:45.4]} 61. Kd4 {[%clk 0:00:22.7]} 61... Rd2+ {[%clk
0:00:32.4]} 62. Ke4 {[%clk 0:00:20.9]} 62... Rd1 {[%clk 0:00:24.2]} 63. Rg3
{[%clk 0:00:20.2]} 63... Re1+ {[%clk 0:00:24.3]} 64. Kd4 {[%clk 0:00:20.3]}
64... Rd1+ {[%clk 0:00:25.4]} 65. Ke4 {[%clk 0:00:19.1]} 65... Rc1 {[%clk
0:00:25.8]} 66. Kd4 {[%clk 0:00:19.7]} 66... Kb2 {[%clk 0:00:25.8]} 67. Rg2+
{[%clk 0:00:18.5]} 67... Rc2 {[%clk 0:00:26.3]} 68. Rg3 {[%clk 0:00:19.5]} 68...
Rd2+ {[%clk 0:00:27.4]} 69. Ke4 {[%clk 0:00:20.8]} 69... Kc2 {[%clk 0:00:28.8]}
70. Rh3 {[%clk 0:00:20.7]} 70... Rd3 {[%clk 0:00:29.1]} 71. Rxd3 {[%clk
0:00:19.4]} 71... Bxd3+ {[%clk 0:00:28.9]} 72. Kd4 {[%clk 0:00:21.3]} 72... Bc4
{[%clk 0:00:16.8]} 0-1

[Event "*** Titled Tuesday 3|2 Blitz"]
[Site "Chess.com"]
[Date "2016.07.05"]
[Round "2"]
[White "ChessWarrior7197"]
[Black "Sanan_Sjugirov"]
[Result "0-1"]
[WhiteElo "2506"]
[BlackElo "2664"]
[TimeControl "180+2"]
[EndTime "11:23:15 PDT"]
[Termination "Sanan_Sjugirov won by resignation"]

1. e4 {[%clk 0:03:01.9]} 1... e5 {[%clk 0:03:00.2]} 2. Nf3 {[%clk 0:03:02.6]}
2... Nc6 {[%clk 0:03:01.5]} 3. Bb5 {[%clk 0:03:03.4]} 3... a6 {[%clk 0:03:02.6]}
4. Ba4 {[%clk 0:03:04]} 4... Nf6 {[%clk 0:03:03.2]} 5. O-O {[%clk 0:03:04.2]}
5... Be7 {[%clk 0:03:04]} 6. d3 {[%clk 0:03:04.7]} 6... b5 {[%clk 0:03:03.1]} 7.
Bb3 {[%clk 0:03:05.6]} 7... d6 {[%clk 0:03:04.2]} 8. a3 {[%clk 0:03:06.3]} 8...
Na5 {[%clk 0:03:03.5]} 9. Ba2 {[%clk 0:03:07]} 9... c5 {[%clk 0:03:04.5]} 10.
Bg5 {[%clk 0:03:07.4]} 10... Be6 {[%clk 0:02:57.8]} 11. Bxf6 {[%clk 0:03:07.2]}
11... Bxf6 {[%clk 0:02:58.9]} 12. Nc3 {[%clk 0:03:08.2]} 12... Nc6 {[%clk
0:02:55.8]} 13. Nd5 {[%clk 0:03:05.5]} 13... O-O {[%clk 0:02:56.7]} 14. b4
{[%clk 0:02:55.6]} 14... g6 {[%clk 0:02:47.2]} 15. Qd2 {[%clk 0:02:45.7]} 15...
Bg7 {[%clk 0:02:43.6]} 16. Ng5 {[%clk 0:02:39.9]} 16... Rb8 {[%clk 0:02:10.8]}
17. Rab1 {[%clk 0:02:36.1]} 17... a5 {[%clk 0:01:31.1]} 18. f4 {[%clk
0:02:19.7]} 18... Bh6 {[%clk 0:01:01.3]} 19. bxc5 {[%clk 0:01:55.6]} 19... dxc5
{[%clk 0:01:00]} 20. h4 {[%clk 0:01:54]} 20... Bxd5 {[%clk 0:00:40.7]} 21. Bxd5
{[%clk 0:01:53.1]} 21... Ne7 {[%clk 0:00:39.3]} 22. Ba2 {[%clk 0:01:25.5]} 22...
c4 {[%clk 0:00:40.3]} 23. Qf2 {[%clk 0:01:26]} 23... exf4 {[%clk 0:00:38.7]} 24.
dxc4 {[%clk 0:01:23.7]} 24... bxc4 {[%clk 0:00:31.2]} 25. Bxc4 {[%clk
0:01:22.4]} 25... Bxg5 {[%clk 0:00:31]} 26. hxg5 {[%clk 0:01:22.3]} 26... Rxb1
{[%clk 0:00:30.5]} 27. Rxb1 {[%clk 0:01:22.1]} 27... Qc7 {[%clk 0:00:27.1]} 28.
Bb3 {[%clk 0:01:09.9]} 28... Qe5 {[%clk 0:00:25]} 29. Rf1 {[%clk 0:01:09.3]}
29... Qxg5 {[%clk 0:00:22.8]} 30. Qxf4 {[%clk 0:01:09.5]} 30... Qxf4 {[%clk
0:00:19.6]} 31. Rxf4 {[%clk 0:01:10.3]} 31... Kg7 {[%clk 0:00:21.2]} 32. e5
{[%clk 0:01:10.6]} 32... Nc6 {[%clk 0:00:20.4]} 33. Rc4 {[%clk 0:00:58.3]} 33...
Nxe5 {[%clk 0:00:21.1]} 34. Rc5 {[%clk 0:00:59.5]} 34... Ng4 {[%clk 0:00:22.1]}
35. Rxa5 {[%clk 0:00:57.1]} 35... Rd8 {[%clk 0:00:20.1]} 36. Kf1 {[%clk
0:00:57.9]} 36... Rd2 {[%clk 0:00:20.4]} 37. Ra7 {[%clk 0:00:56.3]} 37... Ne3+
{[%clk 0:00:14.4]} 38. Ke1 {[%clk 0:00:56.8]} 38... Rxg2 {[%clk 0:00:14.1]} 39.
Rxf7+ {[%clk 0:00:57.6]} 39... Kh6 {[%clk 0:00:15.5]} 40. Rf2 {[%clk 0:00:59.3]}
40... Rg1+ {[%clk 0:00:13]} 41. Ke2 {[%clk 0:00:59.9]} 41... Ng4 {[%clk
0:00:13.6]} 42. Rf7 {[%clk 0:00:59.3]} 42... Rh1 {[%clk 0:00:09.5]} 43. a4
{[%clk 0:00:58.6]} 43... Kg5 {[%clk 0:00:10.9]} 44. a5 {[%clk 0:00:58.7]} 44...
Ra1 {[%clk 0:00:11.1]} 45. Rxh7 {[%clk 0:00:48.4]} 45... Rxa5 {[%clk 0:00:11.7]}
46. Bc4 {[%clk 0:00:46.7]} 46... Re5+ {[%clk 0:00:12]} 47. Kd2 {[%clk
0:00:46.5]} 47... Nf6 {[%clk 0:00:10.3]} 48. Rh2 {[%clk 0:00:41.8]} 48... Ne4+
{[%clk 0:00:10]} 49. Kc1 {[%clk 0:00:42.6]} 49... Kf4 {[%clk 0:00:10.1]} 50. Bd3
{[%clk 0:00:26.1]} 50... g5 {[%clk 0:00:11.2]} 51. Be2 {[%clk 0:00:14]} 51...
Ng3 {[%clk 0:00:08.6]} 52. Bd1 {[%clk 0:00:14.5]} 52... Ne4 {[%clk 0:00:06.7]}
53. Rg2 {[%clk 0:00:14.9]} 53... Ra5 {[%clk 0:00:04.2]} 54. Rg4+ {[%clk
0:00:15.8]} 54... Kf5 {[%clk 0:00:05]} 55. Rg2 {[%clk 0:00:16.9]} 55... Ra1+
{[%clk 0:00:06]} 56. Kb2 {[%clk 0:00:08.1]} 56... Rxd1 {[%clk 0:00:07.9]} 57. c4
{[%clk 0:00:08.8]} 57... Rd2+ {[%clk 0:00:08]} 58. Rxd2 {[%clk 0:00:09.5]} 58...
Nxd2 {[%clk 0:00:09.9]} 59. c5 {[%clk 0:00:11.2]} 59... Ne4 {[%clk 0:00:10.9]}
60. c6 {[%clk 0:00:11.6]} 60... g4 {[%clk 0:00:11.6]} 61. Kc2 {[%clk 0:00:11.1]}
61... Kf4 {[%clk 0:00:11.8]} 62. Kd3 {[%clk 0:00:13]} 62... Nd6 {[%clk
0:00:10.4]} 63. Ke2 {[%clk 0:00:13.4]} 63... g3 {[%clk 0:00:11.4]} 64. c7 {[%clk
0:00:11.3]} 64... Kg4 {[%clk 0:00:10.4]} 65. Kf1 {[%clk 0:00:12]} 65... Kf3
{[%clk 0:00:11.4]} 66. Kg1 {[%clk 0:00:09]} 66... g2 {[%clk 0:00:11.9]} 0-1

[Event "*** Titled Tuesday 3|2 Blitz"]
[Site "Chess.com"]
[Date "2016.07.05"]
[Round "3"]
[White "Mornar1951"]
[Black "Er_is_geen_hoop_meer"]
[Result "1-0"]
[WhiteElo "2499"]
[BlackElo "2328"]
[TimeControl "180+2"]
[EndTime "11:29:54 PDT"]
[Termination "Mornar1951 won by resignation"]

1. Nf3 {[%clk 0:03:01.9]} 1... e6 {[%clk 0:02:58.9]} 2. g3 {[%clk 0:03:00.4]}
2... f5 {[%clk 0:02:59.9]} 3. Bg2 {[%clk 0:03:01.7]} 3... Nf6 {[%clk 0:03:01.5]}
4. O-O {[%clk 0:03:02.8]} 4... Be7 {[%clk 0:03:02.9]} 5. c4 {[%clk 0:02:59.7]}
5... O-O {[%clk 0:03:04.2]} 6. b3 {[%clk 0:03:00.8]} 6... d6 {[%clk 0:03:05.4]}
7. d4 {[%clk 0:03:01.2]} 7... Ne4 {[%clk 0:03:06.6]} 8. Bb2 {[%clk 0:03:02.4]}
8... a5 {[%clk 0:03:05.6]} 9. Nc3 {[%clk 0:03:03.3]} 9... Bf6 {[%clk 0:03:05.6]}
10. e3 {[%clk 0:02:58.9]} 10... Qe8 {[%clk 0:03:02.9]} 11. Rc1 {[%clk
0:02:58.1]} 11... Qh5 {[%clk 0:02:55.2]} 12. Nxe4 {[%clk 0:02:58.8]} 12... fxe4
{[%clk 0:02:57.1]} 13. Nd2 {[%clk 0:03:00]} 13... Qxd1 {[%clk 0:02:51.4]} 14.
Rfxd1 {[%clk 0:03:01.9]} 14... d5 {[%clk 0:02:53.3]} 15. cxd5 {[%clk 0:02:55.1]}
15... exd5 {[%clk 0:02:55.2]} 16. Rxc7 {[%clk 0:02:55.5]} 16... Nc6 {[%clk
0:02:56.7]} 17. f3 {[%clk 0:02:56.6]} 17... Bd8 {[%clk 0:02:57.3]} 18. Rxc8
{[%clk 0:02:54.2]} 18... Rxc8 {[%clk 0:02:59.2]} 19. fxe4 {[%clk 0:02:55.3]}
19... Nb4 {[%clk 0:02:51.9]} 20. exd5 {[%clk 0:02:51.8]} 20... Rc2 {[%clk
0:02:51.9]} 21. Ba3 {[%clk 0:02:52.8]} 21... Bg5 {[%clk 0:02:53.3]} 22. Nf1
{[%clk 0:02:48.5]} 22... Rxa2 {[%clk 0:02:52.8]} 23. Bxb4 {[%clk 0:02:48.7]}
23... axb4 {[%clk 0:02:54.7]} 24. h4 {[%clk 0:02:42.5]} 24... Rff2 {[%clk
0:02:54.1]} 25. Bh3 {[%clk 0:02:38]} 25... Be7 {[%clk 0:02:50.4]} 26. e4 {[%clk
0:02:37]} 26... Rf3 {[%clk 0:02:36.3]} 27. e5 {[%clk 0:02:34]} 27... Rxb3 {[%clk
0:02:33]} 28. d6 {[%clk 0:02:35.1]} 28... Kf8 {[%clk 0:02:30.6]} 29. Be6 {[%clk
0:02:32.9]} 29... Rxg3+ {[%clk 0:02:18.7]} 30. Nxg3 {[%clk 0:02:33.3]} 30... Ra3
{[%clk 0:02:19.7]} 31. Rf1+ {[%clk 0:02:32.4]} 31... Ke8 {[%clk 0:02:20.1]} 32.
Nh5 {[%clk 0:02:23.5]} 1-0

[Event "*** Titled Tuesday 3|2 Blitz"]
[Site "Chess.com"]
[Date "2016.07.05"]
[Round "3"]
[White "thymathgeek"]
[Black "RamonManon0g"]
[Result "1/2-1/2"]
[WhiteElo "2073"]
[BlackElo "2230"]
[TimeControl "180+2"]
[EndTime "11:29:55 PDT"]
[Termination "Game drawn by agreement"]

1. d4 {[%clk 0:03:01.9]} 1... Nf6 {[%clk 0:03:00.9]} 2. c4 {[%clk 0:03:02.5]}
2... g6 {[%clk 0:03:02.4]} 3. Nf3 {[%clk 0:03:02.6]} 3... Bg7 {[%clk 0:03:03.9]}
4. g3 {[%clk 0:03:04.3]} 4... O-O {[%clk 0:03:05.2]} 5. Bg2 {[%clk 0:03:05.9]}
5... d6 {[%clk 0:03:07.1]} 6. O-O {[%clk 0:03:06.6]} 6... Nbd7 {[%clk 0:03:09]}
7. Nc3 {[%clk 0:03:07.4]} 7... e5 {[%clk 0:03:09.9]} 8. e3 {[%clk 0:03:07.8]}
8... c6 {[%clk 0:03:09.6]} 9. b3 {[%clk 0:03:07.8]} 9... Re8 {[%clk 0:03:10.6]}
10. Ba3 {[%clk 0:03:06.4]} 10... Qa5 {[%clk 0:03:07.2]} 11. Bb2 {[%clk
0:03:05.7]} 11... exd4 {[%clk 0:03:05]} 12. exd4 {[%clk 0:03:03.8]} 12... d5
{[%clk 0:03:06.2]} 13. Qd2 {[%clk 0:02:51.5]} 13... dxc4 {[%clk 0:03:02.3]} 14.
bxc4 {[%clk 0:02:52.3]} 14... Qb4 {[%clk 0:02:59.4]} 15. Rfe1 {[%clk 0:02:17.1]}
15... Qxc4 {[%clk 0:02:57.5]} 16. Rxe8+ {[%clk 0:02:13.3]} 16... Nxe8 {[%clk
0:02:59.4]} 17. Re1 {[%clk 0:02:13.8]} 17... Ndf6 {[%clk 0:03:00.8]} 18. Re7
{[%clk 0:01:30.9]} 18... Qb4 {[%clk 0:02:52.3]} 19. Qe2 {[%clk 0:01:27.3]} 19...
Be6 {[%clk 0:02:50.4]} 20. Rxe6 {[%clk 0:01:22.3]} 20... fxe6 {[%clk 0:02:51.1]}
21. Qxe6+ {[%clk 0:01:23.5]} 21... Kh8 {[%clk 0:02:52.7]} 22. Ng5 {[%clk
0:01:22.8]} 22... Qf8 {[%clk 0:02:53.9]} 23. Nf7+ {[%clk 0:01:22.9]} 23... Kg8
{[%clk 0:02:50.9]} 24. Nh6+ {[%clk 0:01:11.8]} 24... Kh8 {[%clk 0:02:51]} 25.
Nf7+ {[%clk 0:01:09.3]} 25... Kg8 {[%clk 0:02:51.8]} 26. Nh6+ {[%clk 0:01:09.9]}
1/2-1/2

[Event "*** Titled Tuesday 3|2 Blitz"]
[Site "Chess.com"]
[Date "2016.07.05"]
[Round "3"]
[White "OparinGrigoriy"]
[Black "Indianlad"]
[Result "1-0"]
[WhiteElo "2645"]
[BlackElo "2596"]
[TimeControl "180+2"]
[EndTime "11:30:21 PDT"]
[Termination "OparinGrigoriy won by resignation"]

1. e4 {[%clk 0:03:01.9]} 1... c5 {[%clk 0:03:01.3]} 2. Nf3 {[%clk 0:03:03.3]}
2... d6 {[%clk 0:03:02.8]} 3. d4 {[%clk 0:03:04.8]} 3... cxd4 {[%clk 0:03:04.7]}
4. Nxd4 {[%clk 0:03:06.7]} 4... Nf6 {[%clk 0:03:06.3]} 5. Nc3 {[%clk 0:03:08.2]}
5... a6 {[%clk 0:03:07.8]} 6. h3 {[%clk 0:03:09.8]} 6... e5 {[%clk 0:03:08.6]}
7. Nb3 {[%clk 0:03:11.1]} 7... b5 {[%clk 0:03:07.7]} 8. a4 {[%clk 0:03:08.3]}
8... b4 {[%clk 0:03:08.7]} 9. Nd5 {[%clk 0:03:09.4]} 9... Nxd5 {[%clk
0:03:10.1]} 10. Qxd5 {[%clk 0:03:10.1]} 10... Ra7 {[%clk 0:03:11.4]} 11. Be3
{[%clk 0:03:10]} 11... Be6 {[%clk 0:03:12.3]} 12. Qd2 {[%clk 0:03:10.1]} 12...
Rb7 {[%clk 0:03:11.1]} 13. a5 {[%clk 0:03:10.3]} 13... Be7 {[%clk 0:03:03.4]}
14. Be2 {[%clk 0:03:09]} 14... O-O {[%clk 0:03:03.7]} 15. O-O {[%clk 0:03:10.6]}
15... Qc8 {[%clk 0:03:00.2]} 16. Bb6 {[%clk 0:03:09.6]} 16... Qc6 {[%clk
0:02:40.6]} 17. Bd3 {[%clk 0:03:10.6]} 17... Nd7 {[%clk 0:02:38.6]} 18. Bxa6
{[%clk 0:03:02.1]} 18... Rbb8 {[%clk 0:02:39.9]} 19. Bd3 {[%clk 0:02:58.5]}
19... Nxb6 {[%clk 0:02:40.9]} 20. axb6 {[%clk 0:03:00.4]} 20... Qxb6 {[%clk
0:02:42.1]} 21. Ra6 {[%clk 0:03:00.7]} 21... Qd8 {[%clk 0:02:32.6]} 22. Rfa1
{[%clk 0:03:00.1]} 22... Bg5 {[%clk 0:02:34.1]} 23. Qe2 {[%clk 0:03:01.2]} 23...
Bf4 {[%clk 0:02:34.3]} 24. Bc4 {[%clk 0:02:58.9]} 24... Bxc4 {[%clk 0:02:24.1]}
25. Qxc4 {[%clk 0:02:59.2]} 25... Rc8 {[%clk 0:02:13]} 26. Qd3 {[%clk
0:03:00.3]} 26... Qc7 {[%clk 0:02:14.1]} 27. g3 {[%clk 0:02:54]} 27... Bh6
{[%clk 0:02:11.5]} 28. Na5 {[%clk 0:02:21.3]} 28... Qxc2 {[%clk 0:02:11.7]} 29.
Qxc2 {[%clk 0:02:22.9]} 29... Rxc2 {[%clk 0:02:13.1]} 30. b3 {[%clk 0:02:24.5]}
30... f5 {[%clk 0:02:03.7]} 31. exf5 {[%clk 0:02:13.8]} 31... Rxf5 {[%clk
0:02:04.2]} 32. Rf1 {[%clk 0:02:15.5]} 32... Rfxf2 {[%clk 0:02:01]} 33. Rxf2
{[%clk 0:02:16.7]} 1-0